[Event "Titled Tuesday Blitz January 18 2022"]
[White "Samadov, Read"]
[Black "Piorun, Kacper"]
[WhiteFideId "13417444"]
[BlackFideId "1130420"]
[WhiteElo "2851"]
[BlackElo "2972"]
[Result "0-1"]
[Round "07"]
[TimeControl "180+1"]
[Date "2022.01.18"]
[WhiteClock "0:00:07"]
[BlackClock "0:00:03"]

1. d4 {[%clk 0:03:00]}  d5 {[%clk 0:02:58]} 2. c4 {[%clk 0:03:01]}  dxc4 {[%clk 0:02:58]} 3. e3 {[%clk 0:03:01]}  b5 {[%clk 0:02:56]} 4. a4 {[%clk 0:03:00]}  b4 {[%clk 0:02:56]} 5. Bxc4 {[%clk 0:03:00]}  Nf6 {[%clk 0:02:53]} 6. Nf3 {[%clk 0:02:59]}  e6 {[%clk 0:02:52]} 7. O-O {[%clk 0:02:59]}  Be7 {[%clk 0:02:52]} 8. a5 {[%clk 0:02:59]}  O-O {[%clk 0:02:51]} 9. Nbd2 {[%clk 0:02:58]}  a6 {[%clk 0:02:41]} 10. Qe2 {[%clk 0:02:55]}  Bb7 {[%clk 0:02:41]} 11. b3 {[%clk 0:02:48]}  c5 {[%clk 0:02:41]} 12. dxc5 {[%clk 0:02:45]}  Bxc5 {[%clk 0:02:12]} 13. Bb2 {[%clk 0:02:45]}  Nbd7 {[%clk 0:02:12]} 14. Rfd1 {[%clk 0:02:43]}  Qe7 {[%clk 0:02:07]} 15. Rac1 {[%clk 0:02:39]}  Rfc8 {[%clk 0:02:06]} 16. Bd3 {[%clk 0:02:38]}  Nd5 {[%clk 0:01:47]} 17. Nc4 {[%clk 0:02:32]}  N7f6 {[%clk 0:01:39]} 18. Nfe5 {[%clk 0:02:28]}  Qe8 {[%clk 0:01:30]} 19. Ng4 {[%clk 0:02:11]}  Qe7 {[%clk 0:01:09]} 20. Bb1 {[%clk 0:01:46]}  Nxg4 {[%clk 0:01:04]} 21. Qxg4 {[%clk 0:01:46]}  f5 {[%clk 0:01:04]} 22. Qg3 {[%clk 0:01:43]}  Rd8 {[%clk 0:00:59]} 23. h4 {[%clk 0:01:27]}  Nc3 {[%clk 0:00:53]} 24. Bxc3 {[%clk 0:01:19]}  bxc3 {[%clk 0:00:52]} 25. Bd3 {[%clk 0:01:04]}  Bb4 {[%clk 0:00:47]} 26. h5 {[%clk 0:00:53]}  Rac8 {[%clk 0:00:34]} 27. h6 {[%clk 0:00:53]}  g6 {[%clk 0:00:34]} 28. Bc2 {[%clk 0:00:43]}  Rxd1+ {[%clk 0:00:16]} 29. Rxd1 {[%clk 0:00:44]}  Rd8 {[%clk 0:00:17]} 30. Rxd8+ {[%clk 0:00:42]}  Qxd8 {[%clk 0:00:17]} 31. Qe5 {[%clk 0:00:42]}  Qd7 {[%clk 0:00:08]} 32. Qb8+ {[%clk 0:00:24]}  Bf8 {[%clk 0:00:08]} 33. Ne5 {[%clk 0:00:22]}  Qd5 {[%clk 0:00:08]} 34. f3 {[%clk 0:00:15]}  Qc5 {[%clk 0:00:06]} 35. Qxb7 {[%clk 0:00:05]}  Qxe3+ {[%clk 0:00:06]} 36. Kf1 {[%clk 0:00:05]}  Qxe5 {[%clk 0:00:05]} 37. Qxa6 {[%clk 0:00:05]}  Bxh6 {[%clk 0:00:04]} 38. Qc8+ {[%clk 0:00:05]}  Kg7 {[%clk 0:00:04]} 39. Qd7+ {[%clk 0:00:05]}  Kg8 {[%clk 0:00:04]} 40. Qd8+ {[%clk 0:00:05]}  Bf8 {[%clk 0:00:04]} 41. a6 {[%clk 0:00:04]}  Qe3 {[%clk 0:00:05]} 42. Qd7 {[%clk 0:00:03]}  Qc1+ {[%clk 0:00:04]} 43. Qd1 {[%clk 0:00:03]}  Qa3 {[%clk 0:00:04]} 44. Qd7 {[%clk 0:00:02]}  Qxa6+ {[%clk 0:00:04]} 45. Kf2 {[%clk 0:00:02]}  Qb6+ {[%clk 0:00:04]} 46. Kg3 {[%clk 0:00:03]}  Qb8+ {[%clk 0:00:04]} 47. Kh3 {[%clk 0:00:03]}  Qe5 {[%clk 0:00:04]} 48. b4 {[%clk 0:00:03]}  h5 {[%clk 0:00:04]} 49. Bb3 {[%clk 0:00:03]}  Kh8 {[%clk 0:00:03]} 50. Bxe6 {[%clk 0:00:04]}  c2 {[%clk 0:00:03]} 51. Qf7 {[%clk 0:00:04]}  Qg7 {[%clk 0:00:02]} 52. Qe8 {[%clk 0:00:05]}  c1=Q {[%clk 0:00:01]} 53. Bd5 {[%clk 0:00:05]}  Qh1+ {[%clk 0:00:02]} 54. Kg3 {[%clk 0:00:06]}  h4+ {[%clk 0:00:02]} 55. Kf2 {[%clk 0:00:07]}  Qd4+ {[%clk 0:00:02]} 56. Ke2 {[%clk 0:00:07]}  Qxg2+ {[%clk 0:00:03]} 0-1


[Site "https://www.chess.com"]

[Event "Titled Tuesday Blitz January 18 2022"]
[White "Sargsyan, Anna M."]
[Black "Ivanov, Oleg"]
[WhiteFideId "13308130"]
[BlackFideId "4103114"]
[WhiteElo "2271"]
[BlackElo "2826"]
[Result "0-1"]
[Round "07"]
[TimeControl "180+1"]
[Date "2022.01.18"]
[WhiteClock "0:00:02"]
[BlackClock "0:00:08"]

1. d4 {[%clk 0:03:00]}  d5 {[%clk 0:02:57]} 2. c4 {[%clk 0:03:01]}  e6 {[%clk 0:02:58]} 3. Nf3 {[%clk 0:03:01]}  Nf6 {[%clk 0:02:58]} 4. Nc3 {[%clk 0:03:02]}  c5 {[%clk 0:02:57]} 5. cxd5 {[%clk 0:03:02]}  Nxd5 {[%clk 0:02:58]} 6. e4 {[%clk 0:03:01]}  Nxc3 {[%clk 0:02:59]} 7. bxc3 {[%clk 0:03:02]}  cxd4 {[%clk 0:02:59]} 8. cxd4 {[%clk 0:03:03]}  Bb4+ {[%clk 0:03:00]} 9. Bd2 {[%clk 0:03:04]}  Bxd2+ {[%clk 0:03:00]} 10. Qxd2 {[%clk 0:03:05]}  O-O {[%clk 0:03:00]} 11. Bc4 {[%clk 0:03:05]}  Nd7 {[%clk 0:03:00]} 12. O-O {[%clk 0:03:06]}  b6 {[%clk 0:03:01]} 13. Rfe1 {[%clk 0:03:05]}  Bb7 {[%clk 0:02:57]} 14. Rad1 {[%clk 0:03:05]}  Rc8 {[%clk 0:02:56]} 15. Bb3 {[%clk 0:03:05]}  Re8 {[%clk 0:02:57]} 16. h3 {[%clk 0:03:03]}  Nf6 {[%clk 0:02:55]} 17. Qf4 {[%clk 0:03:02]}  h6 {[%clk 0:02:54]} 18. Ne5 {[%clk 0:02:59]}  Qe7 {[%clk 0:02:44]} 19. d5 {[%clk 0:02:51]}  exd5 {[%clk 0:02:28]} 20. exd5 {[%clk 0:02:51]}  Qd6 {[%clk 0:02:26]} 21. Qf5 {[%clk 0:02:38]}  b5 {[%clk 0:02:14]} 22. a4 {[%clk 0:02:24]}  a6 {[%clk 0:02:14]} 23. axb5 {[%clk 0:02:21]}  axb5 {[%clk 0:02:15]} 24. f4 {[%clk 0:01:50]}  Rc7 {[%clk 0:01:59]} 25. Kh1 {[%clk 0:01:41]}  Rc3 {[%clk 0:01:25]} 26. Ba2 {[%clk 0:01:31]}  b4 {[%clk 0:01:12]} 27. Ng4 {[%clk 0:01:25]}  Rd8 {[%clk 0:00:59]} 28. Bb1 {[%clk 0:01:20]}  Kf8 {[%clk 0:00:47]} 29. Nxf6 {[%clk 0:01:07]}  Qxf6 {[%clk 0:00:48]} 30. Qh7 {[%clk 0:01:07]}  g6 {[%clk 0:00:46]} 31. Qxh6+ {[%clk 0:01:07]}  Kg8 {[%clk 0:00:38]} 32. f5 {[%clk 0:00:59]}  Rg3 {[%clk 0:00:20]} 33. fxg6 {[%clk 0:00:45]}  fxg6 {[%clk 0:00:21]} 34. Re6 {[%clk 0:00:36]}  Qxe6 {[%clk 0:00:21]} 35. Qh4 {[%clk 0:00:29]}  Qd6 {[%clk 0:00:19]} 36. Re1 {[%clk 0:00:20]}  Rf8 {[%clk 0:00:12]} 37. Be4 {[%clk 0:00:14]}  Rc3 {[%clk 0:00:11]} 38. Bf3 {[%clk 0:00:11]}  Rc7 {[%clk 0:00:10]} 39. Qd4 {[%clk 0:00:06]}  Re7 {[%clk 0:00:10]} 40. Rb1 {[%clk 0:00:05]}  Bc8 {[%clk 0:00:08]} 41. Qc4 {[%clk 0:00:03]}  Bf5 {[%clk 0:00:07]} 42. Rd1 {[%clk 0:00:02]}  Rc8 {[%clk 0:00:07]} 43. Qb5 {[%clk 0:00:01]}  Rec7 {[%clk 0:00:08]} 44. Qe2 {[%clk 0:00:01]}  Rc1 {[%clk 0:00:07]} 45. Qd2 {[%clk 0:00:01]}  Rxd1+ {[%clk 0:00:07]} 46. Qxd1 {[%clk 0:00:02]}  Rd8 {[%clk 0:00:08]} 47. Qd4 {[%clk 0:00:03]}  Qe7 {[%clk 0:00:07]} 48. Qc4 {[%clk 0:00:02]}  Qd6 {[%clk 0:00:07]} 49. Kg1 {[%clk 0:00:02]}  Rc8 {[%clk 0:00:08]} 50. Qd4 {[%clk 0:00:02]}  Qc5 {[%clk 0:00:08]} 0-1


[Site "https://www.chess.com"]

[Event "Titled Tuesday Blitz January 18 2022"]
[White "Savchenko, Boris"]
[Black "Khumalo, Keith"]
[WhiteFideId "4147332"]
[BlackFideId "14319470"]
[WhiteElo "2875"]
[BlackElo "2611"]
[Result "1-0"]
[Round "07"]
[TimeControl "180+1"]
[Date "2022.01.18"]
[WhiteClock "0:01:46"]
[BlackClock "0:01:25"]

1. e4 {[%clk 0:03:00]}  c5 {[%clk 0:02:57]} 2. Nf3 {[%clk 0:03:01]}  e6 {[%clk 0:02:54]} 3. c3 {[%clk 0:02:59]}  Qa5 {[%clk 0:02:54]} 4. Na3 {[%clk 0:02:58]}  Nc6 {[%clk 0:02:50]} 5. d4 {[%clk 0:02:57]}  cxd4 {[%clk 0:02:50]} 6. Nc4 {[%clk 0:02:57]}  Qc7 {[%clk 0:02:51]} 7. Nxd4 {[%clk 0:02:53]}  d5 {[%clk 0:02:49]} 8. exd5 {[%clk 0:02:52]}  exd5 {[%clk 0:02:49]} 9. Nb5 {[%clk 0:02:50]}  Qe7+ {[%clk 0:02:49]} 10. Ne3 {[%clk 0:02:49]}  a6 {[%clk 0:02:46]} 11. Qa4 {[%clk 0:02:38]}  Nf6 {[%clk 0:02:37]} 12. Be2 {[%clk 0:02:37]}  Rb8 {[%clk 0:02:35]} 13. Nd4 {[%clk 0:02:32]}  Bd7 {[%clk 0:02:36]} 14. O-O {[%clk 0:02:24]}  Qc5 {[%clk 0:02:30]} 15. Nb3 {[%clk 0:02:14]}  Qb6 {[%clk 0:02:15]} 16. Qf4 {[%clk 0:02:11]}  Be7 {[%clk 0:02:14]} 17. Bf3 {[%clk 0:02:06]}  Be6 {[%clk 0:02:04]} 18. Rd1 {[%clk 0:01:59]}  Rd8 {[%clk 0:02:02]} 19. Nf5 {[%clk 0:01:59]}  O-O {[%clk 0:02:00]} 20. Be3 {[%clk 0:01:56]}  Qb5 {[%clk 0:01:53]} 21. Nbd4 {[%clk 0:01:53]}  Nxd4 {[%clk 0:01:52]} 22. Nxe7+ {[%clk 0:01:52]}  Kh8 {[%clk 0:01:44]} 23. Bxd4 {[%clk 0:01:53]}  Ne4 {[%clk 0:01:39]} 24. Qe5 {[%clk 0:01:47]}  Nf6 {[%clk 0:01:25]} 25. Qxf6 {[%clk 0:01:46]} 1-0


[Site "https://www.chess.com"]

[Event "Titled Tuesday Blitz January 18 2022"]
[White "Shipov, Sergei"]
[Black "Nazaretyan, Tigran"]
[WhiteFideId "4113624"]
[BlackFideId "24162345"]
[WhiteElo "2784"]
[BlackElo "2192"]
[Result "1-0"]
[Round "07"]
[TimeControl "180+1"]
[Date "2022.01.18"]
[WhiteClock "0:00:48"]
[BlackClock "0:00:18"]

1. d4 {[%clk 0:03:00]}  Nf6 {[%clk 0:02:59]} 2. c4 {[%clk 0:03:00]}  c5 {[%clk 0:02:59]} 3. d5 {[%clk 0:03:00]}  b5 {[%clk 0:02:59]} 4. cxb5 {[%clk 0:03:00]}  a6 {[%clk 0:02:59]} 5. e3 {[%clk 0:03:00]}  axb5 {[%clk 0:02:58]} 6. Bxb5 {[%clk 0:03:00]}  Qa5+ {[%clk 0:02:58]} 7. Nc3 {[%clk 0:03:00]}  Bb7 {[%clk 0:02:58]} 8. Bd2 {[%clk 0:02:58]}  Qb6 {[%clk 0:02:55]} 9. a4 {[%clk 0:02:54]}  Nxd5 {[%clk 0:02:55]} 10. Nf3 {[%clk 0:02:54]}  e6 {[%clk 0:02:54]} 11. Nxd5 {[%clk 0:02:52]}  Bxd5 {[%clk 0:02:52]} 12. Bc3 {[%clk 0:02:53]}  Be7 {[%clk 0:02:52]} 13. O-O {[%clk 0:02:52]}  O-O {[%clk 0:02:51]} 14. Nd2 {[%clk 0:02:50]}  Qb7 {[%clk 0:02:46]} 15. Qg4 {[%clk 0:02:48]}  g6 {[%clk 0:02:41]} 16. e4 {[%clk 0:02:45]}  Bc6 {[%clk 0:02:37]} 17. h4 {[%clk 0:02:21]}  Bxb5 {[%clk 0:02:27]} 18. axb5 {[%clk 0:02:21]}  Rxa1 {[%clk 0:02:27]} 19. Rxa1 {[%clk 0:02:20]}  Qxb5 {[%clk 0:02:28]} 20. h5 {[%clk 0:02:11]}  Nc6 {[%clk 0:02:27]} 21. e5 {[%clk 0:02:11]}  Nd4 {[%clk 0:02:01]} 22. Ne4 {[%clk 0:01:59]}  Qe2 {[%clk 0:01:56]} 23. f3 {[%clk 0:01:56]}  Qe3+ {[%clk 0:01:52]} 24. Kh2 {[%clk 0:01:50]}  Nf5 {[%clk 0:01:24]} 25. Ra7 {[%clk 0:01:47]}  Rd8 {[%clk 0:01:14]} 26. Rc7 {[%clk 0:01:40]}  Kf8 {[%clk 0:00:57]} 27. Bd2 {[%clk 0:01:21]}  Qd4 {[%clk 0:00:53]} 28. Bc3 {[%clk 0:01:17]}  Qe3 {[%clk 0:00:53]} 29. Bd2 {[%clk 0:01:13]}  Qd4 {[%clk 0:00:52]} 30. Qf4 {[%clk 0:01:14]}  d6 {[%clk 0:00:27]} 31. exd6 {[%clk 0:01:01]}  Bxd6 {[%clk 0:00:26]} 32. Nxd6 {[%clk 0:01:00]}  Qxd6 {[%clk 0:00:18]} 33. Qxd6+ {[%clk 0:00:51]}  Rxd6 {[%clk 0:00:18]} 34. Bf4 {[%clk 0:00:50]}  Rd4 {[%clk 0:00:17]} 35. Be5 {[%clk 0:00:49]}  Rh4+ {[%clk 0:00:17]} 36. Kg1 {[%clk 0:00:50]}  gxh5 {[%clk 0:00:15]} 37. Bf6 {[%clk 0:00:50]}  Ke8 {[%clk 0:00:10]} 38. Bxh4 {[%clk 0:00:49]}  Nxh4 {[%clk 0:00:11]} 39. Rxc5 {[%clk 0:00:49]}  Nf5 {[%clk 0:00:11]} 40. Rxf5 {[%clk 0:00:47]}  exf5 {[%clk 0:00:11]} 41. Kh2 {[%clk 0:00:45]}  Ke7 {[%clk 0:00:11]} 42. Kg3 {[%clk 0:00:45]}  Kf6 {[%clk 0:00:11]} 43. Kf4 {[%clk 0:00:46]}  Ke6 {[%clk 0:00:10]} 44. b4 {[%clk 0:00:46]}  h6 {[%clk 0:00:10]} 45. b5 {[%clk 0:00:46]}  h4 {[%clk 0:00:10]} 46. b6 {[%clk 0:00:46]}  h3 {[%clk 0:00:11]} 47. gxh3 {[%clk 0:00:45]}  Kd6 {[%clk 0:00:11]} 48. Kxf5 {[%clk 0:00:46]}  Kc6 {[%clk 0:00:12]} 49. Kf6 {[%clk 0:00:47]}  Kxb6 {[%clk 0:00:12]} 50. Kxf7 {[%clk 0:00:47]}  Kc5 {[%clk 0:00:13]} 51. Kg6 {[%clk 0:00:48]}  Kd4 {[%clk 0:00:14]} 52. f4 {[%clk 0:00:48]}  Ke4 {[%clk 0:00:15]} 53. f5 {[%clk 0:00:49]}  h5 {[%clk 0:00:16]} 54. f6 {[%clk 0:00:49]}  h4 {[%clk 0:00:16]} 55. Kg5 {[%clk 0:00:49]}  Kf3 {[%clk 0:00:16]} 56. Kxh4 {[%clk 0:00:48]}  Kf4 {[%clk 0:00:16]} 57. f7 {[%clk 0:00:48]}  Kf3 {[%clk 0:00:17]} 58. f8=Q+ {[%clk 0:00:49]}  Kg2 {[%clk 0:00:18]} 59. Qf4 {[%clk 0:00:48]} 1-0


[Site "https://www.chess.com"]

[Event "Titled Tuesday Blitz January 18 2022"]
[White "Sjoberg, Isak"]
[Black "Panesar Vedant"]
[WhiteFideId "1521640"]
[BlackFideId "35033018"]
[WhiteElo "2016"]
[BlackElo "1971"]
[Result "1-0"]
[Round "07"]
[TimeControl "180+1"]
[Date "2022.01.18"]
[WhiteClock "0:00:27"]
[BlackClock "0:00:11"]

1. e4 {[%clk 0:03:00]}  c6 {[%clk 0:02:59]} 2. d4 {[%clk 0:02:59]}  d5 {[%clk 0:03:00]} 3. Nc3 {[%clk 0:02:59]}  dxe4 {[%clk 0:03:00]} 4. Nxe4 {[%clk 0:03:00]}  Nf6 {[%clk 0:03:00]} 5. Nxf6+ {[%clk 0:02:57]}  exf6 {[%clk 0:03:01]} 6. c3 {[%clk 0:02:56]}  Bd6 {[%clk 0:02:58]} 7. Bd3 {[%clk 0:02:56]}  O-O {[%clk 0:02:56]} 8. Qc2 {[%clk 0:02:56]}  Re8+ {[%clk 0:02:56]} 9. Ne2 {[%clk 0:02:57]}  h5 {[%clk 0:02:57]} 10. O-O {[%clk 0:02:55]}  h4 {[%clk 0:02:57]} 11. Bf4 {[%clk 0:02:55]}  h3 {[%clk 0:02:42]} 12. g3 {[%clk 0:02:52]}  Na6 {[%clk 0:02:39]} 13. Rfe1 {[%clk 0:02:47]}  Bg4 {[%clk 0:02:37]} 14. Bh7+ {[%clk 0:02:23]}  Kf8 {[%clk 0:02:32]} 15. Bf5 {[%clk 0:02:19]}  Bxe2 {[%clk 0:02:07]} 16. Bxd6+ {[%clk 0:02:14]}  Qxd6 {[%clk 0:02:06]} 17. Rxe2 {[%clk 0:02:15]}  c5 {[%clk 0:01:38]} 18. dxc5 {[%clk 0:02:01]}  Nxc5 {[%clk 0:01:39]} 19. Rae1 {[%clk 0:01:53]}  Rxe2 {[%clk 0:01:34]} 20. Qxe2 {[%clk 0:01:52]}  g6 {[%clk 0:01:27]} 21. Bxh3 {[%clk 0:01:50]}  Rd8 {[%clk 0:01:27]} 22. Bg2 {[%clk 0:01:48]}  b6 {[%clk 0:01:26]} 23. h4 {[%clk 0:01:41]}  Nd3 {[%clk 0:01:25]} 24. Rf1 {[%clk 0:01:17]}  Ne5 {[%clk 0:01:20]} 25. h5 {[%clk 0:01:15]}  Qd2 {[%clk 0:01:20]} 26. Re1 {[%clk 0:01:05]}  gxh5 {[%clk 0:01:08]} 27. Be4 {[%clk 0:01:02]}  Kg7 {[%clk 0:00:51]} 28. Kg2 {[%clk 0:00:53]}  Qxe2 {[%clk 0:00:33]} 29. Rxe2 {[%clk 0:00:54]}  Rd1 {[%clk 0:00:32]} 30. b3 {[%clk 0:00:49]}  Ng6 {[%clk 0:00:27]} 31. Bxg6 {[%clk 0:00:46]}  Kxg6 {[%clk 0:00:27]} 32. Re7 {[%clk 0:00:45]}  a6 {[%clk 0:00:23]} 33. Rb7 {[%clk 0:00:45]}  Rd6 {[%clk 0:00:21]} 34. c4 {[%clk 0:00:45]}  a5 {[%clk 0:00:20]} 35. a3 {[%clk 0:00:45]}  Rc6 {[%clk 0:00:19]} 36. Kf3 {[%clk 0:00:42]}  a4 {[%clk 0:00:19]} 37. bxa4 {[%clk 0:00:31]}  Rxc4 {[%clk 0:00:19]} 38. Rxb6 {[%clk 0:00:31]}  Rxa4 {[%clk 0:00:19]} 39. Rb3 {[%clk 0:00:31]}  Kg5 {[%clk 0:00:20]} 40. Kg2 {[%clk 0:00:30]}  f5 {[%clk 0:00:19]} 41. Kh3 {[%clk 0:00:29]}  f4 {[%clk 0:00:18]} 42. Rb5+ {[%clk 0:00:28]}  f5 {[%clk 0:00:18]} 43. gxf4+ {[%clk 0:00:25]}  Kxf4 {[%clk 0:00:18]} 44. Rb4+ {[%clk 0:00:25]}  Rxb4 {[%clk 0:00:13]} 45. axb4 {[%clk 0:00:25]}  Ke5 {[%clk 0:00:12]} 46. Kh4 {[%clk 0:00:26]}  Kd4 {[%clk 0:00:12]} 47. Kxh5 {[%clk 0:00:25]}  Kc4 {[%clk 0:00:11]} 48. Kg5 {[%clk 0:00:26]}  Kxb4 {[%clk 0:00:10]} 49. Kxf5 {[%clk 0:00:26]}  Kc3 {[%clk 0:00:11]} 50. Ke6 {[%clk 0:00:26]}  Kd4 {[%clk 0:00:10]} 51. f4 {[%clk 0:00:27]}  Ke4 {[%clk 0:00:11]} 52. f5 {[%clk 0:00:27]} 1-0


[Site "https://www.chess.com"]

[Event "Titled Tuesday Blitz January 18 2022"]
[White "Srihari L R"]
[Black "Albornoz Cabrera, Carlos Daniel"]
[WhiteFideId "46617116"]
[BlackFideId "3518736"]
[WhiteElo "2738"]
[BlackElo "2862"]
[Result "0-1"]
[Round "07"]
[TimeControl "180+1"]
[Date "2022.01.18"]
[WhiteClock "0:00:14"]
[BlackClock "0:01:01"]

1. d4 {[%clk 0:02:58]}  d5 {[%clk 0:02:58]} 2. c4 {[%clk 0:02:57]}  c6 {[%clk 0:02:59]} 3. Nf3 {[%clk 0:02:56]}  Nf6 {[%clk 0:02:59]} 4. Qc2 {[%clk 0:02:56]}  g6 {[%clk 0:02:58]} 5. Bf4 {[%clk 0:02:55]}  Bf5 {[%clk 0:02:57]} 6. Qb3 {[%clk 0:02:55]}  Qb6 {[%clk 0:02:57]} 7. e3 {[%clk 0:02:53]}  Qxb3 {[%clk 0:02:52]} 8. axb3 {[%clk 0:02:52]}  Bxb1 {[%clk 0:02:52]} 9. Rxb1 {[%clk 0:02:51]}  e6 {[%clk 0:02:51]} 10. Bd3 {[%clk 0:02:41]}  Na6 {[%clk 0:02:45]} 11. h3 {[%clk 0:02:39]}  Nb4 {[%clk 0:02:44]} 12. Ke2 {[%clk 0:02:38]}  Nxd3 {[%clk 0:02:43]} 13. Kxd3 {[%clk 0:02:37]}  a6 {[%clk 0:02:42]} 14. Be5 {[%clk 0:02:37]}  Be7 {[%clk 0:02:41]} 15. Nd2 {[%clk 0:02:30]}  Rf8 {[%clk 0:02:38]} 16. Bxf6 {[%clk 0:02:29]}  Bxf6 {[%clk 0:02:38]} 17. f4 {[%clk 0:02:29]}  O-O-O {[%clk 0:02:32]} 18. c5 {[%clk 0:02:20]}  g5 {[%clk 0:02:32]} 19. g3 {[%clk 0:02:14]}  gxf4 {[%clk 0:02:32]} 20. gxf4 {[%clk 0:02:14]}  Rg8 {[%clk 0:02:30]} 21. Rbg1 {[%clk 0:02:13]}  Rg6 {[%clk 0:02:31]} 22. Rg4 {[%clk 0:02:12]}  Rdg8 {[%clk 0:02:28]} 23. Rhg1 {[%clk 0:02:11]}  Kd7 {[%clk 0:02:28]} 24. Nf3 {[%clk 0:02:10]}  Ke7 {[%clk 0:02:27]} 25. Ke2 {[%clk 0:02:05]}  Rb8 {[%clk 0:02:25]} 26. Ra1 {[%clk 0:02:00]}  Rbg8 {[%clk 0:02:23]} 27. Rag1 {[%clk 0:01:56]}  Kd7 {[%clk 0:02:13]} 28. b4 {[%clk 0:01:48]}  Rb8 {[%clk 0:02:10]} 29. Ra1 {[%clk 0:01:45]}  Ke7 {[%clk 0:02:07]} 30. Kd3 {[%clk 0:01:44]}  Rbg8 {[%clk 0:02:02]} 31. Rag1 {[%clk 0:01:43]}  Rb8 {[%clk 0:02:02]} 32. Ra1 {[%clk 0:01:24]}  Kf8 {[%clk 0:01:55]} 33. Ke2 {[%clk 0:01:16]}  b6 {[%clk 0:01:50]} 34. Rxa6 {[%clk 0:01:10]}  bxc5 {[%clk 0:01:50]} 35. bxc5 {[%clk 0:01:10]}  Rxb2+ {[%clk 0:01:51]} 36. Nd2 {[%clk 0:01:06]}  Rh6 {[%clk 0:01:49]} 37. Rg3 {[%clk 0:01:06]}  Bd8 {[%clk 0:01:45]} 38. Ra8 {[%clk 0:01:02]}  Ke7 {[%clk 0:01:44]} 39. Rg8 {[%clk 0:01:01]}  Rxh3 {[%clk 0:01:36]} 40. Ra7+ {[%clk 0:00:43]}  Kf6 {[%clk 0:01:35]} 41. Rxd8 {[%clk 0:00:41]}  Rh2+ {[%clk 0:01:34]} 42. Kf3 {[%clk 0:00:41]}  Rbxd2 {[%clk 0:01:33]} 43. Rdd7 {[%clk 0:00:33]}  Rdf2+ {[%clk 0:01:14]} 44. Kg3 {[%clk 0:00:31]}  Rhg2+ {[%clk 0:01:13]} 45. Kh3 {[%clk 0:00:30]}  Rg7 {[%clk 0:01:10]} 46. Ra3 {[%clk 0:00:25]}  Kf5 {[%clk 0:01:08]} 47. Raa7 {[%clk 0:00:24]}  Ke4 {[%clk 0:01:02]} 48. Rxf7 {[%clk 0:00:23]}  Rxf7 {[%clk 0:01:02]} 49. Rxf7 {[%clk 0:00:24]}  Kxe3 {[%clk 0:01:03]} 50. Rc7 {[%clk 0:00:23]}  Kxd4 {[%clk 0:01:03]} 51. Rxc6 {[%clk 0:00:23]}  Rxf4 {[%clk 0:01:02]} 52. Rxe6 {[%clk 0:00:21]}  Kxc5 {[%clk 0:01:02]} 53. Kg3 {[%clk 0:00:21]}  Rf8 {[%clk 0:01:02]} 54. Re7 {[%clk 0:00:20]}  d4 {[%clk 0:01:02]} 55. Rxh7 {[%clk 0:00:20]}  d3 {[%clk 0:01:02]} 56. Rd7 {[%clk 0:00:18]}  Kc4 {[%clk 0:01:02]} 57. Kg4 {[%clk 0:00:16]}  Kc3 {[%clk 0:01:02]} 58. Rc7+ {[%clk 0:00:16]}  Kd2 {[%clk 0:01:02]} 59. Rd7 {[%clk 0:00:17]}  Kc2 {[%clk 0:01:02]} 60. Rc7+ {[%clk 0:00:17]}  Kd1 {[%clk 0:01:02]} 61. Ra7 {[%clk 0:00:15]}  d2 {[%clk 0:01:02]} 62. Rd7 {[%clk 0:00:15]}  Rc8 {[%clk 0:01:01]} 63. Kf3 {[%clk 0:00:14]}  Kc2 {[%clk 0:01:01]} 0-1


[Site "https://www.chess.com"]

[Event "Titled Tuesday Blitz January 18 2022"]
[White "Suder, Jakub"]
[Black "Seo, Jung Min"]
[WhiteFideId "1195310"]
[BlackFideId "1734687"]
[WhiteElo "2058"]
[BlackElo "2401"]
[Result "0-1"]
[Round "07"]
[TimeControl "180+1"]
[Date "2022.01.18"]
[WhiteClock "0:01:11"]
[BlackClock "0:00:29"]

1. d4 {[%clk 0:03:00]}  Nf6 {[%clk 0:02:59]} 2. c4 {[%clk 0:03:00]}  g6 {[%clk 0:03:00]} 3. Nc3 {[%clk 0:03:00]}  d5 {[%clk 0:03:00]} 4. cxd5 {[%clk 0:03:01]}  Nxd5 {[%clk 0:03:00]} 5. e4 {[%clk 0:03:01]}  Nxc3 {[%clk 0:03:00]} 6. bxc3 {[%clk 0:03:02]}  Bg7 {[%clk 0:03:01]} 7. Bc4 {[%clk 0:03:03]}  c5 {[%clk 0:03:00]} 8. Ne2 {[%clk 0:03:03]}  Nc6 {[%clk 0:03:01]} 9. Be3 {[%clk 0:03:03]}  O-O {[%clk 0:02:59]} 10. h4 {[%clk 0:03:04]}  Na5 {[%clk 0:02:51]} 11. Bd3 {[%clk 0:03:02]}  e5 {[%clk 0:02:49]} 12. d5 {[%clk 0:03:02]}  c4 {[%clk 0:02:48]} 13. Bc2 {[%clk 0:03:02]}  f5 {[%clk 0:02:46]} 14. exf5 {[%clk 0:02:57]}  gxf5 {[%clk 0:02:45]} 15. f4 {[%clk 0:02:57]}  e4 {[%clk 0:02:36]} 16. h5 {[%clk 0:02:49]}  h6 {[%clk 0:02:20]} 17. g4 {[%clk 0:02:49]}  fxg4 {[%clk 0:02:20]} 18. Ng3 {[%clk 0:02:49]}  Bxc3+ {[%clk 0:02:16]} 19. Kf2 {[%clk 0:02:45]}  Bxa1 {[%clk 0:02:11]} 20. Qxa1 {[%clk 0:02:46]}  Qf6 {[%clk 0:02:09]} 21. Qc1 {[%clk 0:02:35]}  Bf5 {[%clk 0:02:05]} 22. Rd1 {[%clk 0:02:27]}  b6 {[%clk 0:01:47]} 23. Bd4 {[%clk 0:02:24]}  Qf7 {[%clk 0:01:43]} 24. Be5 {[%clk 0:02:15]}  Rae8 {[%clk 0:01:39]} 25. Kg2 {[%clk 0:02:10]}  Bh7 {[%clk 0:01:36]} 26. Qe3 {[%clk 0:02:04]}  Rxe5 {[%clk 0:01:34]} 27. fxe5 {[%clk 0:02:05]}  Qf3+ {[%clk 0:01:34]} 28. Qxf3 {[%clk 0:02:04]}  exf3+ {[%clk 0:01:34]} 29. Kf2 {[%clk 0:02:04]}  Bxc2 {[%clk 0:01:34]} 30. Rd4 {[%clk 0:01:58]}  c3 {[%clk 0:01:29]} 31. d6 {[%clk 0:01:53]}  Nc6 {[%clk 0:01:10]} 32. Rxg4+ {[%clk 0:01:49]}  Kh7 {[%clk 0:01:10]} 33. e6 {[%clk 0:01:46]}  Bd3 {[%clk 0:01:09]} 34. e7 {[%clk 0:01:39]}  Re8 {[%clk 0:01:09]} 35. Ke3 {[%clk 0:01:30]}  c2 {[%clk 0:00:54]} 36. Kd2 {[%clk 0:01:30]}  Nxe7 {[%clk 0:00:51]} 37. dxe7 {[%clk 0:01:23]}  Rxe7 {[%clk 0:00:51]} 38. Rd4 {[%clk 0:01:23]}  Rc7 {[%clk 0:00:37]} 39. Kc1 {[%clk 0:01:23]}  Rc3 {[%clk 0:00:36]} 40. Rd7+ {[%clk 0:01:18]}  Kg8 {[%clk 0:00:36]} 41. Rxa7 {[%clk 0:01:16]}  f2 {[%clk 0:00:35]} 42. Ra8+ {[%clk 0:01:16]}  Kf7 {[%clk 0:00:34]} 43. Ra7+ {[%clk 0:01:15]}  Ke6 {[%clk 0:00:34]} 44. Ra8 {[%clk 0:01:14]}  Bh7 {[%clk 0:00:30]} 45. Rh8 {[%clk 0:01:11]}  Rxg3 {[%clk 0:00:29]} 0-1


[Site "https://www.chess.com"]